Cogmind - Beta 15 @@@ ROGUE MODE // 2025.10.11 @ 18:41:40 Player: NQH Result: Destroyed by G-67 Veteran with Plasma Rifle Performance ------------- Evolutions (7) 3500 Regions Visited (11) 2200 Robots Destroyed (10) 50 Value Destroyed (263) 263 Prototype IDs (4) 80 Alien Tech Used (0) 0 Bonus (1470) 1470 TOTAL SCORE: 7563 Bonus ------- Pacifist 470 Entered DSFs 1000 Cogmind --------- Core Integrity 0/1300 Matter 290/300 Energy 96/100 System Corruption 0% Temperature Cool (0) Movement Core (50) Location -3/Research Parts ------- > --- POWER (1) -------- (None) > --- PROPULSION (2) --- (None) > --- UTILITY (16) ----- Core Analyzer > --- WEAPON (2) ------- Plasma Sword > --- INVENTORY (5) ---- Centrium Medium Armor Plating Centrium Medium Armor Plating Improved Shield Generator Plasma Sword Peak State ------------ > --- POWER ------------ (None) > --- PROPULSION ------- Improved Antigrav System > --- UTILITY ---------- Core Analyzer Centrium Medium Armor Plating Improved Shield Generator > --- WEAPON ----------- Plasma Sword > --- INVENTORY -------- Centrium Medium Armor Plating Plasma Sword Plasma Sword [Rating: 33] Favorites ----------- Power Fission Core Power Core Fission Core Reactor Light Antimatter Reactor Propulsion Improved Linear Gravjet Treads Improved Medium Treads Hover Unit Improved Linear Gravjet Flight Unit Cooled Nuclear Pulse Thruster Utility Machine Analyzer Device Drone Bay Processor Machine Analyzer Protection Improved Propulsion Shielding Weapon Plasma Sword Ballistic Gun Light Assault Rifle Special Weapon Advanced Remote Datajack Slashing Weapon Plasma Sword Build | -11 -10 -10 -9 -8 -7 -7 -6 -5 -4 -4 -3 ------- Run | Yrd Mat Min Mat Mat Fac DSF Fac Fac Fac DSF Res Slots Evolved 14 | . . . 2 2 2 . 2 2 2 . 2 Power . | . . . . . . . . . . . . Propulsion . | . . . . . . . . . . . . Utility 14 | . . . 2 2 2 . 2 2 2 . 2 Weapon . | . . . . . . . . . . . . Parts Attached 48 | . 2 . 11 6 . 1 5 8 3 . 12 Power 2 | . . . . . . . 1 . 1 . . Engine . | . . . . . . . . . . . . Core 1 | . . . . . . . 1 . . . . Reactor 1 | . . . . . . . . . 1 . . Propulsion 12 | . . . 2 4 . . 1 2 1 . 2 Treads 1 | . . . . . . . 1 . . . . Leg . | . . . . . . . . . . . . Wheel . | . . . . . . . . . . . . Hover 10 | . . . 2 4 . . . 1 1 . 2 Flight 1 | . . . . . . . . 1 . . . Utility 26 | . 2 . 9 . . . 3 6 . . 6 Device 5 | . . . . . . . . 3 . . 2 Storage . | . . . . . . . . . . . . Processor 15 | . 2 . 9 . . . . 3 . . 1 Hackware . | . . . . . . . . . . . . Protection 6 | . . . . . . . 3 . . . 3 Artifact . | . . . . . . . . . . . . Weapon 8 | . . . . 2 . 1 . . 1 . 4 Energy Gun . | . . . . . . . . . . . . Energy Cannon . | . . . . . . . . . . . . Ballistic Gun 1 | . . . . 1 . . . . . . . Ballistic Cannon . | . . . . . . . . . . . . Launcher . | . . . . . . . . . . . . Special Weapon 1 | . . . . . . . . . . . 1 Impact Weapon . | . . . . . . . . . . . . Slashing Weapon 6 | . . . . 1 . 1 . . 1 . 3 Piercing Weapon . | . . . . . . . . . . . . Special Melee Weapon . | . . . . . . . . . . . . Unidentified Prototypes 4 | . . . . 1 . . . 1 1 . 1 Parts Lost 18 | . . 1 2 5 . 1 . 1 . 2 6 Power . | . . . . . . . . . . . . Propulsion 11 | . . . 2 4 . . . 1 . 1 3 Utility 3 | . . 1 . . . 1 . . . . 1 Weapon 4 | . . . . 1 . . . . . 1 2 Highest Loss Streak 3 | . . 1 2 3 . 1 . 1 . 2 2 To Critical Strikes . | . . . . . . . . . . . . Average Backups 2 | . 2 5 1 . . . 1 2 2 3 4 Power . | . . . . . . . . . . . . Propulsion . | . . . . . . . . . . 1 . Utility 1 | . 2 5 1 . . . 1 1 1 1 1 Weapon . | . . . . . . . . . . 1 2 Tool/Special . | . . . . . . . . . . . . Unused Backups 10 | . . . . 1 . . 4 . 3 . 2 Power 4 | . . . . . . . 4 . . . . Propulsion 1 | . . . . 1 . . . . . . . Utility 1 | . . . . . . . . . . . 1 Weapon 4 | . . . . . . . . . 3 . 1 Tool/Special . | . . . . . . . . . . . . Average Slot Usage (%) 16 | . 18 27 33 40 23 22 17 4 8 5 12 Hover 1 | . . . 2 7 . . . 1 . . 2 Processor 11 | . 18 27 30 31 23 20 10 1 . . . Protection 1 | . . . . . . . 3 . . . 3 Slashing Weapon 1 | . . . . 1 . 2 . . 3 2 3 Peak Build Rating 33 | . 5 5 12 20 9 13 28 21 20 16 33 Average Rating 10 | . 3 4 6 15 9 10 9 5 12 8 19 On Entrance 5 | . . 5 3 12 9 9 6 . 9 16 2 Naked Turns 277 | . 19 . 13 . . . 48 170 5 19 3 Heaviest Build 24 | . . . . 2 . 4 24 4 3 3 14 Greatest Support 30 | 3 3 3 14 24 3 3 30 9 10 9 12 Greatest Overweight (x) 2 | . . . . . . 1 2 1 . . 1 Average Overweight (x) . | . . . . . . . . . . . . Largest Inventory Capacity 5 | 5 5 5 5 5 5 5 5 5 5 5 5 Average Capacity 5 | 5 5 5 5 5 5 5 5 5 5 5 5 Most Carried 5 | . 5 5 4 2 . 1 5 5 5 3 5 Average Carried 2 | . 2 5 . . . . 1 2 2 3 4 Final Capacity 5 | 5 5 5 5 5 5 5 5 5 5 5 5 Final Carried 5 | . 5 5 . . . 1 1 5 3 3 4 Class Distribution -------------------- 93% | Mutant 6% | Sprinter Dominant Class ---------------- Mutant | -10/Materials Mutant | -10/Mines Mutant | -9/Materials Mutant | -8/Materials Mutant | -7/Factory Mutant | -7/DSF Mutant | -6/Factory Mutant | -5/Factory Sprinter | -4/Factory Mutant | -4/DSF Mutant | -3/Research Resources | -11 -10 -10 -9 -8 -7 -7 -6 -5 -4 -4 -3 ----------- Run | Yrd Mat Min Mat Mat Fac DSF Fac Fac Fac DSF Res Matter Collected 529 | 62 . 36 . 13 . . 165 . . . 253 Remotely . | . . . . . . . . . . . . Salvage Created 535 | . . . . 13 . . . . . . 522 Parts 34 | . . . . 2 . . . . . . 32 Haulers Intercepted . | . . . . . . . . . . . . Recyclers Shooed 2 | . . . . . . . 1 . . . 1 Parts Field Recycled . | . . . . . . . . . . . . Retrieved Matter . | . . . . . . . . . . . . Parts Self-Destructed . | . . . . . . . . . . . . Prevented . | . . . . . . . . . . . . Kills | -11 -10 -10 -9 -8 -7 -7 -6 -5 -4 -4 -3 ------- Run | Yrd Mat Min Mat Mat Fac DSF Fac Fac Fac DSF Res Combat Hostiles Destroyed 4 | . . . . 1 . . . . . . 3 Melee 4 | . . . . 1 . . . . . . 3 Classes Destroyed 6 | . . . . 1 . . . . . . 5 Worker 3 | . . . . . . . . . . . 3 Builder 1 | . . . . . . . . . . . 1 Recycler 2 | . . . . . . . . . . . 2 Swarmer 2 | . . . . 1 . . . . . . 1 Sentry 1 | . . . . . . . . . . . 1 Programmer 1 | . . . . . . . . . . . 1 Best Kill Streak 5 | . . . . 1 . . . . . . 5 Combat Bots Only 1 | . . . . 1 . . . . . . 1 Max Kills in Single Turn 1 | . . . . 1 . . . . . . 1 Gunslinging . | . . . . . . . . . . . . Exploded . | . . . . . . . . . . . . Melee 1 | . . . . 1 . . . . . . 1 Uniques/NPCs Destroyed . | . . . . . . . . . . . . Combat | -11 -10 -10 -9 -8 -7 -7 -6 -5 -4 -4 -3 -------- Run | Yrd Mat Min Mat Mat Fac DSF Fac Fac Fac DSF Res Hostile Shots Fired 573 | . 6 23 61 100 9 13 155 46 . 21 139 Missed 219 | . 3 7 16 33 3 3 65 20 . 8 61 Hits 354 | . 3 16 45 67 6 10 90 26 . 13 78 Melee 7 | . . . . . . . . . . 7 . Projectile 347 | . 3 16 45 67 6 10 90 26 . 6 78 AOE 2 | . . . . . . . . . . 2 . Critical Strikes 11 | . . . 1 1 . 1 3 1 . 2 2 Damage Taken 5859 | . 33 164 386 822 38 214 1087 432 . 548 2135 Core 3816 | . 33 141 304 505 38 149 537 361 . 445 1303 Absorbed by Shields 148 | . . . . . . . . . . 139 9 Redirected to Shielding 160 | . . . . . . . . . . . 160 Ignored by Resistances 6 | . . . . . . . . 6 . . . Core Remaining (%) 49 | 100 . 30 24 8 . 73 36 63 . 61 . Volleys Fired 1 | . . . . . . . . . . . 1 Largest 1 | . . . . . . . . . . . 1 Hottest 10 | . . . . . . . . . . . 10 Shots Fired 1 | . . . . . . . . . . . 1 Gun . | . . . . . . . . . . . . Cannon . | . . . . . . . . . . . . Launcher . | . . . . . . . . . . . . Special 1 | . . . . . . . . . . . 1 Kinetic . | . . . . . . . . . . . . Thermal . | . . . . . . . . . . . . Explosive . | . . . . . . . . . . . . Electromagnetic . | . . . . . . . . . . . . Robot Hit Streak 1 | . . . . . . . . . . . 1 Robot Miss Streak . | . . . . . . . . . . . . Penetration Max . | . . . . . . . . . . . . Secondary Targets . | . . . . . . . . . . . . Shots Hit Robots 20 | . . . . 1 . . . . . 1 18 Core Hits 12 | . . . . 3 . . 1 . . . 8 Critical Kills . | . . . . . . . . . . . . Critical Parts Destroyed . | . . . . . . . . . . . . Critical Strikes 3 | . . . . . . . . . . . 3 Sever 3 | . . . . . . . . . . . 3 Melee Attacks 25 | . . . . 4 . . . . . 1 20 Impact . | . . . . . . . . . . . . Slashing 25 | . . . . 4 . . . . . 1 20 Piercing . | . . . . . . . . . . . . Sneak Attacks 7 | . . . . . . . . . . . 7 Combat Hostiles . | . . . . . . . . . . . . Follow-up Attacks . | . . . . . . . . . . . . Damage Inflicted 1279 | . . 50 2 41 . 1 100 . . 34 1051 Guns . | . . . . . . . . . . . . Cannons . | . . . . . . . . . . . . Explosions . | . . . . . . . . . . . . Melee 1110 | . . . . 25 . . . . . 34 1051 Ramming 169 | . . 50 2 16 . 1 100 . . . . Kinetic . | . . . . . . . . . . . . Thermal . | . . . . . . . . . . . . Explosive . | . . . . . . . . . . . . Electromagnetic . | . . . . . . . . . . . . Impact . | . . . . . . . . . . . . Slashing 1110 | . . . . 25 . . . . . 34 1051 Piercing . | . . . . . . . . . . . . Highest Corruption 5 | . . 5 . 3 . . 2 . . . . Average Corruption 2 | . . 2 . 3 . . 2 . . . . Corruption Purged . | . . . . . . . . . . . . Corruption Blocked . | . . . . . . . . . . . . Effects 3 | . . . . 1 . . 2 . . . . Message Errors 1 | . . . . 1 . . . . . . . Matter Fused 1 | . . . . . . . 1 . . . . Energy Discharges 1 | . . . . . . . 1 . . . . Overload Shots . | . . . . . . . . . . . . Overflow Damage 277 | . . . . . . . . . . . 277 Projectiles . | . . . . . . . . . . . . Explosions 39 | . . . . . . . . . . . 39 Melee 238 | . . . . . . . . . . . 238 Knockbacks 1 | . . . . . . . 1 . . . . Impact 1 | . . . . . . . 1 . . . . Kinetic . | . . . . . . . . . . . . Secondary . | . . . . . . . . . . . . Self-Inflicted Damage 345 | . . 24 . 7 . . 45 . . . 269 Shots 2 | . . . . . . . . . . . 2 Rammed 36 | . . 7 2 6 . 1 20 . . . . Targets Rammed 36 | . . 7 2 6 . 1 20 . . . . Kicked . | . . . . . . . . . . . . Crushed . | . . . . . . . . . . . . Highest Temperature 13 | . . . . . . . 13 . . . . Average Temperature 13 | . . . . . . . 13 . . . . Received Heat Transfer 765 | . 18 15 30 117 6 54 246 45 . . 234 Siege Activations . | . . . . . . . . . . . . Martial Activations . | . . . . . . . . . . . . Shielding Activations . | . . . . . . . . . . . . Robots Disrupted . | . . . . . . . . . . . . Combat Hostiles . | . . . . . . . . . . . . Robots Corrupted . | . . . . . . . . . . . . Combat Hostiles . | . . . . . . . . . . . . Parts Fried . | . . . . . . . . . . . . Impact Corruptions . | . . . . . . . . . . . . Robots Melted . | . . . . . . . . . . . . Combat Hostiles . | . . . . . . . . . . . . Parts Melted . | . . . . . . . . . . . . Heat Transferred . | . . . . . . . . . . . . Parts Sabotaged . | . . . . . . . . . . . . Parts Stolen . | . . . . . . . . . . . . Parts Stripped . | . . . . . . . . . . . . Power Chain Reactions . | . . . . . . . . . . . . Alert | -11 -10 -10 -9 -8 -7 -7 -6 -5 -4 -4 -3 ------- Run | Yrd Mat Min Mat Mat Fac DSF Fac Fac Fac DSF Res Maximum Alert Level . | . . . . . . . . . . . . Low Security (%) 100 | 100 100 100 100 100 100 100 100 100 100 100 100 Level 1 . | . . . . . . . . . . . . Level 2 . | . . . . . . . . . . . . Level 3 . | . . . . . . . . . . . . Level 4 . | . . . . . . . . . . . . Level 5 . | . . . . . . . . . . . . High Security . | . . . . . . . . . . . . Max Security . | . . . . . . . . . . . . Peak Influence 163 | . . 30 3 35 . 3 130 85 36 14 163 Initial 63 | . . . 3 . . 3 . 63 36 14 . Average 26 | . . 2 . 4 . 2 31 31 26 6 52 Influence Increases 778 | . . 30 . 65 5 . 180 135 5 . 358 Destroy 0b10 Robot/C 80 | . . . . 20 . . . . . . 60 Destroy 0b10 Robot/NC 30 | . . . . . . . . . . . 30 Destroy Leader 20 | . . . . . . . . . . . 20 Successful Hack 10 | . . . . . 5 . . . 5 . . Disable Machine 45 | . . . . . . . . . . . 45 Destroy Structure 68 | . . . . . . . . . . . 68 Partial Spotted 15 | . . . . . . . . . . . 15 Lose Combat Pursuer 510 | . . 30 . 45 . . 180 135 . . 120 Influence Decreases 625 | . . 20 10 65 . 5 50 190 59 21 205 Entered New Map 122 | . . . 7 . . 2 . 67 39 7 . Time Decay 366 | . . 10 3 25 . . 50 113 20 . 145 Lost Part 137 | . . 10 . 40 . 3 . 10 . 14 60 Squads Dispatched 13 | . 1 . 1 2 . 1 2 1 . 1 4 Investigation 1 | . . . . . . . . . . . 1 Extermination 2 | . . . . . . . . . . . 2 Reinforcement 10 | . 1 . 1 2 . 1 2 1 . 1 1 Assault . | . . . . . . . . . . . . Garrison . | . . . . . . . . . . . . Intercept . | . . . . . . . . . . . . Searches Triggered . | . . . . . . . . . . . . Construction Impeded . | . . . . . . . . . . . . Haulers Reinforced . | . . . . . . . . . . . . Active Scanning Responses . | . . . . . . . . . . . . Cargo Convoy Interrupts . | . . . . . . . . . . . . Stealth | -11 -10 -10 -9 -8 -7 -7 -6 -5 -4 -4 -3 --------- Run | Yrd Mat Min Mat Mat Fac DSF Fac Fac Fac DSF Res Distress Signals 9 | . . . . 3 . . 3 1 . . 2 Communications Jammed . | . . . . . . . . . . . . Distress Signals . | . . . . . . . . . . . . Times Spotted 111 | . 3 5 7 17 1 3 26 20 . 2 27 Peak Tracking Total 14 | . 3 3 7 13 1 3 14 9 . 3 9 Tactical Retreats 13 | . . 1 . 1 . . 4 3 . . 4 Traps | -11 -10 -10 -9 -8 -7 -7 -6 -5 -4 -4 -3 ------- Run | Yrd Mat Min Mat Mat Fac DSF Fac Fac Fac DSF Res Traps Triggered 5 | . . . . 1 . . . . . 3 1 Indirectly . | . . . . . . . . . . . . Trap Hack Attempts . | . . . . . . . . . . . . Triggered . | . . . . . . . . . . . . Disarmed . | . . . . . . . . . . . . Reprogrammed . | . . . . . . . . . . . . Reused . | . . . . . . . . . . . . Traps Extracted . | . . . . . . . . . . . . Installed . | . . . . . . . . . . . . Triggered . | . . . . . . . . . . . . Machines | -11 -10 -10 -9 -8 -7 -7 -6 -5 -4 -4 -3 ---------- Run | Yrd Mat Min Mat Mat Fac DSF Fac Fac Fac DSF Res Machines Disabled 3 | . . . . . . . . . . . 3 Max in Single Turn 2 | . . . . . . . . . . . 2 Machines Repaired . | . . . . . . . . . . . . Machines Dismantled . | . . . . . . . . . . . . Machines Sabotaged . | . . . . . . . . . . . . Overloaded Fab Kills . | . . . . . . . . . . . . Hacking | -11 -10 -10 -9 -8 -7 -7 -6 -5 -4 -4 -3 --------- Run | Yrd Mat Min Mat Mat Fac DSF Fac Fac Fac DSF Res Machines Accessed 3 | . . . . . 1 . . . 1 . 1 Terminals 2 | . . . . . 1 . . . 1 . . Fabricators . | . . . . . . . . . . . . Repair Stations . | . . . . . . . . . . . . Recycling Units . | . . . . . . . . . . . . Scanalyzers . | . . . . . . . . . . . . Garrison Access 1 | . . . . . . . . . . . 1 Total Hacks 7 | . . . . . 3 . . . 2 . 2 Successful 2 | . . . . . 1 . . . 1 . . Failed 5 | . . . . . 2 . . . 1 . 2 Catastrophic 1 | . . . . . . . . . . . 1 Database Lockouts . | . . . . . . . . . . . . Manual . | . . . . . . . . . . . . Terminals 5 | . . . . . 3 . . . 2 . . Fabricators . | . . . . . . . . . . . . Repair Stations . | . . . . . . . . . . . . Recycling Units . | . . . . . . . . . . . . Scanalyzers . | . . . . . . . . . . . . Garrison Access 2 | . . . . . . . . . . . 2 Terminal Hacks 2 | . . . . . 1 . . . 1 . . Open DSF 2 | . . . . . 1 . . . 1 . . Fabricator Hacks . | . . . . . . . . . . . . Repair Station Hacks . | . . . . . . . . . . . . Recycling Unit Hacks . | . . . . . . . . . . . . Scanalyzer . | . . . . . . . . . . . . Garrison Access Hacks . | . . . . . . . . . . . . Unauthorized Hacks . | . . . . . . . . . . . . Terminals . | . . . . . . . . . . . . Fabricators . | . . . . . . . . . . . . Repair Stations . | . . . . . . . . . . . . Recycling Units . | . . . . . . . . . . . . Scanalyzers . | . . . . . . . . . . . . Garrison Access . | . . . . . . . . . . . . Data Cores Recovered . | . . . . . . . . . . . . Used . | . . . . . . . . . . . . Hacking Detections 3 | . . . . . 1 . . . 1 . 1 Full Trace Events 1 | . . . . . . . . . . . 1 Feedback Events . | . . . . . . . . . . . . Feedback Blocked . | . . . . . . . . . . . . Robot Schematics Acquired . | . . . . . . . . . . . . Robots Built . | . . . . . . . . . . . . Authchips . | . . . . . . . . . . . . Time . | . . . . . . . . . . . . Total Robot Build Rating . | . . . . . . . . . . . . Part Schematics Acquired . | . . . . . . . . . . . . Parts Built . | . . . . . . . . . . . . Authchips . | . . . . . . . . . . . . Time . | . . . . . . . . . . . . Total Part Build Rating . | . . . . . . . . . . . . Parts Repaired . | . . . . . . . . . . . . Time . | . . . . . . . . . . . . Parts Recycled . | . . . . . . . . . . . . Recycled Matter . | . . . . . . . . . . . . Retrieved Matter . | . . . . . . . . . . . . Retrieved Components . | . . . . . . . . . . . . Parts Scanalyzed . | . . . . . . . . . . . . Part Schematics Acquired . | . . . . . . . . . . . . Parts Damaged . | . . . . . . . . . . . . Bothacking | -11 -10 -10 -9 -8 -7 -7 -6 -5 -4 -4 -3 ------------ Run | Yrd Mat Min Mat Mat Fac DSF Fac Fac Fac DSF Res Used RIF Installer . | . . . . . . . . . . . . Robots Hacked . | . . . . . . . . . . . . Non-combat . | . . . . . . . . . . . . Combat . | . . . . . . . . . . . . Robot Hacks Applied . | . . . . . . . . . . . . Relay Couplers Released . | . . . . . . . . . . . . Fabnet Peak Effective % . | . . . . . . . . . . . . Robots Rewired . | . . . . . . . . . . . . Allies Hacked . | . . . . . . . . . . . . Hacks Repelled . | . . . . . . . . . . . . Allies | -11 -10 -10 -9 -8 -7 -7 -6 -5 -4 -4 -3 -------- Run | Yrd Mat Min Mat Mat Fac DSF Fac Fac Fac DSF Res Total Allies . | . . . . . . . . . . . . Largest Group . | . . . . . . . . . . . . Highest-Rated Group . | . . . . . . . . . . . . Highest-Rated Ally . | . . . . . . . . . . . . Total Orders . | . . . . . . . . . . . . Ally Attacks . | . . . . . . . . . . . . Total Damage . | . . . . . . . . . . . . Kills . | . . . . . . . . . . . . Allies Corrupted . | . . . . . . . . . . . . Allies Melted . | . . . . . . . . . . . . Intel | -11 -10 -10 -9 -8 -7 -7 -6 -5 -4 -4 -3 ------- Run | Yrd Mat Min Mat Mat Fac DSF Fac Fac Fac DSF Res Active Infowar (turns) 293 | . . . 10 102 15 23 143 . . . . Machine Analysis 293 | . . . 10 102 15 23 143 . . . . Robot Analysis Total . | . . . . . . . . . . . . Derelict Logs Recovered . | . . . . . . . . . . . . Drone Launches . | . . . . . . . . . . . . Drone Recoveries . | . . . . . . . . . . . . Exploration | -11 -10 -10 -9 -8 -7 -7 -6 -5 -4 -4 -3 ------------- Run | Yrd Mat Min Mat Mat Fac DSF Fac Fac Fac DSF Res Turns Passed 1445 | 9 69 172 72 102 15 23 236 290 53 36 368 Spaces Moved 2258 | 18 122 330 108 164 30 29 296 529 48 61 523 Core 1430 | 18 122 330 93 61 30 29 269 310 3 17 148 Treads 27 | . . . . . . . 27 . . . . Legs . | . . . . . . . . . . . . Wheels . | . . . . . . . . . . . . Hover 669 | . . . 15 103 . . . 171 5 . 375 Flight 132 | . . . . . . . . 48 40 44 . Fastest Speed 32 | 50 50 50 50 38 50 50 50 32 32 32 40 Average Speed 49 | 50 50 50 51 44 50 68 65 45 33 37 48 Slowest Speed 160 | 50 50 50 60 60 50 100 160 100 50 50 120 Overloaded Moves 216 | . . . . 88 . . . 44 40 44 . Propulsion Burnouts . | . . . . . . . . . . . . Robots Hopped 4 | . . . . . . . . 4 . . . Potential Cave-ins . | . . . . . . . . . . . . Cave-ins Triggered . | . . . . . . . . . . . . Exploration Rate (%) 25 | 3 27 77 11 27 1 42 13 16 2 67 19 Regions Visited 11 Branch Regions 1 Pre-discovered Areas . | . . . . . . . . . . . . Known Exits Taken 2 | . . . . . 1 . . . 1 . . Unknown Exits Taken 7 | 1 1 1 1 1 . . 1 1 . . . Scrap Searched 1 | . . 1 . . . . . . . . . Spaces Dug . | . . . . . . . . . . . . Terrain Destroyed 60 | . . . . . . . . . . . 60 Melee . | . . . . . . . . . . . . Projectile . | . . . . . . . . . . . . AOE 60 | . . . . . . . . . . . 60 Terrain Rammed . | . . . . . . . . . . . . Walls Destroyed . | . . . . . . . . . . . . Machines Disabled . | . . . . . . . . . . . . Actions | -11 -10 -10 -9 -8 -7 -7 -6 -5 -4 -4 -3 --------- Run | Yrd Mat Min Mat Mat Fac DSF Fac Fac Fac DSF Res Total 2521 | 17 128 336 121 182 29 31 340 573 87 72 605 Wait 90 | . . . . . . . . 34 24 . 32 Move 2241 | 17 121 329 107 164 29 28 295 521 47 60 523 Hop 3 | . . . . . . . . 3 . . . Pick Up 25 | . 5 . . 2 . . 7 3 2 . 6 Fast Attach 38 | . 2 . 6 5 . 1 5 8 3 . 8 Attach 15 | . . . 4 1 . . 2 . 2 . 6 Detach 16 | . . . 1 . . 1 3 4 3 . 4 Swap 1 | . . . 1 . . . . . . . . Drop 20 | . . . . 1 . . 8 . 6 . 5 Fire 1 | . . . . . . . . . . . 1 Melee 25 | . . . . 4 . . . . . 1 20 Ram 35 | . . 7 2 5 . 1 20 . . . . Kick . | . . . . . . . . . . . . Crush . | . . . . . . . . . . . . Escape Stasis 11 | . . . . . . . . . . 11 . Rewire . | . . . . . . . . . . . . Trap . | . . . . . . . . . . . . Miscellaneous . | . . . . . . . . . . . . Route ------- -11/Scrapyard -10/Materials -10/Mines -9/Materials -8/Materials -7/Factory -7/DSF -6/Factory -5/Factory -4/Factory -4/DSF -3/Research History --------- Turn | Location | Event 3 | -11/Scrapyard | Discovered new exit (range 15) 10 | -11/Scrapyard | Entered Materials 75 | -10/Materials | Discovered new exit (range 8) 79 | -10/Materials | Entered Mines 179 | -10/Mines | Received a Rocket Launcher from a helpful Derelict 242 | -10/Mines | Discovered new exit (range 14) 246 | -10/Mines | Core integrity fell below 50% 251 | -10/Mines | Entered Materials 251 | -9/Materials | Evolved 2 slots: Utility x2 299 | -9/Materials | Released all parts (4) 306 | -9/Materials | Discovered new exit (range 8) 318 | -9/Materials | Core integrity fell below 50% 323 | -9/Materials | Entered another Materials area 323 | -8/Materials | Evolved 2 slots: Utility x2 340 | -8/Materials | Build established: Mutant 411 | -8/Materials | Core integrity fell below 50% 417 | -8/Materials | Discovered new exit (range 15) 423 | -8/Materials | Core integrity fell below 20% 425 | -8/Materials | Entered Factory 425 | -7/Factory | Evolved 2 slots: Utility x2 440 | -7/Factory | Identified exit to DSF 440 | -7/Factory | Entered DSF 447 | -7/DSF | Lost 3 parts (3n) 453 | -7/DSF | Discovered new exit (range 15) 463 | -7/DSF | Entered Factory 463 | -6/Factory | Evolved 2 slots: Utility x2 651 | -6/Factory | Released all parts (6) 688 | -6/Factory | Core integrity fell below 50% 691 | -6/Factory | Discovered new exit (range 15) 699 | -6/Factory | Entered another Factory area 699 | -5/Factory | Evolved 2 slots: Utility x2 812 | -5/Factory | Released all parts (2) 986 | -5/Factory | Discovered new exit (range 9) 989 | -5/Factory | Entered another Factory area 989 | -4/Factory | Evolved 2 slots: Utility x2 1042 | -4/Factory | Identified exit to DSF 1042 | -4/Factory | Entered DSF 1068 | -4/DSF | Additional patrols routed to DSF 1072 | -4/DSF | Discovered new exit (range 11) 1078 | -4/DSF | Entered Research 1078 | -3/Research | Evolved 2 slots: Utility x2 1427 | -3/Research | Core integrity fell below 50% 1438 | -3/Research | Core integrity fell below 20% 1446 | -3/Research | Destroyed by G-67 Veteran with Plasma Rifle Last Messages --------------- 01402_ Penetrated by Slug. 01402_ Slug penetrates Wall. 01405_ Penetrated by Slug. 01406_ Imp. Antigrav System destroyed. 01409_ Slug penetrates Wall. 01409_ Penetrated by Slug. 01417_ W-44 Eye sends out distress signal. 01426_ Antimatter Diverter explodes. 01426_ Scanalyzer disabled. 01434_ Antimatter Diverter explodes. 01434_ Plasma Sword destroyed. 01434_ Destroyed Plasma Sword. 01438_ U-05 Engineer lays Concrete. 01439_ U-05 Engineer builds a Wall. 01441_ The unstable cave ceiling collapses. 01443_ G-73 Enforcer crushed by falling debris. 01443_ U-05 Engineer builds a Door. 01444_ Critical hit (Burn: +37). 01445_ U-05 Engineer lays Concrete. 01446_ Particle Synthesizer disabled. Map ----- +----------------------------------------------------+ | ????????????????????????????????????????????????? | | ????????????????????????????????????????????????? | | ????????????????????????????????????????????????? | | ????????????????????????????????????????????????? | | ???????????????????????? ???????????????????????? | | ??????????????????????? "?????????????????????? | | ??????????????????????? "??? ??????????????? | | ??????????????????????? "?" ??????????????? | | ??????????????????????? """ #???????????#?? | | ??????????????????????# """ #???????????# | | ??????????????????????# #???????????# | | ??????????????????????# #???????????# | | ????????????????###???# #???????????# | | ???????????????## #???# """ #???????????# | | ?????????####### ##### """ #???????????# | | ???????### # # """ #???????????# | | ??????## # """ +???????????# | | ??????# """ #???????????# | | ??????# #???????????# | | ??????# #???????????# | | ??????# #g g ############### | | ??????# # """ | | ??????## /g """ | | ??????# u#g g""" | | ??????# """ u """ | | ??????# """ # @ """ #####+########### | | ??????## """ "" # #???????????????? | | ???????### # #???????????????? | | ?????????# ! # #???????????????? | | ?????????############## """ #???????????????? | | ??????????????????????# """ #???????????????? | | ??????????????????????# """ #???????????????? | | ??????????????????????# "" #???????????????? | | ??????????????????????# """ #???????????????? | | ??????????????????????# #???????????????? | | ??????????????????????# #???????????????? | | ??????????????????????# #???????????????? | | ??????????????????????# """ #???????????????? | | ??????????????????????# "?" #???????????????? | | ??????????????????????# p??? #???????????????? | | ??????????????????????# ??? ???????????????? | | ??????????????????????? ??????????????????????? | | ????????????????????????????????????????????????? | | ????????????????????????????????????????????????? | | ????????????????????????????????????????????????? | | ????????????????????????????????????????????????? | | ????????????????????????????????????????????????? | | ????????????????????????????????????????????????? | | ????????????????????????????????################# | | ??????????????????????????????? # | +----------------------------------------------------+ Best States ------------- Heat Dissipation 46 Energy Generation 18 Energy Capacity 310 Matter Stores 300 Matter Capacity 300 Sight Range 16 Terrain Scan Density 10 Armor Coverage 675 Resistance: TH 25 Propulsion Shielding 66 Point Defense Rating 80 Evasion (%) 63 Targeting Accuracy 24 Melee Accuracy 8 Core Analysis 6 Recoil Reduction 1 Item Schematics ----------------- None Robot Schematics ------------------ None Fabricated ------------ Nothing Repaired ---------- Nothing Alien Tech Used ----------------- None Achievements -------------- Streaker Challenges ------------ None Game ------ Seed ShockModifiedInjector Manual? 0 Play Time 00:17:13 Cumulative 26.6 hours Start 2025.10.11 @ 18:24:41 End 2025.10.11 @ 18:41:40 Sessions 1 Manual Loads 0 Difficulty Rogue Special Mode None Game No. 97 Rogue 97 Adventurer 0 Explorer 0 Win Type - Total 0 Types 0/0/0/0/0/0/0/0/0/0 Lore% 10 Gallery% 29 Achievement% 26 Wizard Run 0 Options --------- Layout 1 ASCII 0 Keyboard 1 Movement Vi Keybinds 0 Fullscreen 1 Font 16/SmallcapsGlow Map View 55x38 Zoom Use 0% Tactical HUD 1 Map Filters NONE Filters NONE Steam 1 RUN: 615a4ea1-4058-4feb-8427-da2dafaa3315